fUST/lending_fUST_20250822
["ID","MTS","AMOUNT","RATE_DAILY","PERIOD"]
[380551378,1755807059866,-5434.25,0.00022739,3]
[380551379,1755807059875,-551.65,0.00022739,3]
[380551380,1755807059884,-480.0,0.00022739,3]
[380551381,1755807059894,-503.55,0.00022739,3]
[380551382,1755807059903,-2049.4,0.00022739,3]
[380551383,1755807059913,-518.17,0.00022739,3]
[380551384,1755807059922,-785.98,0.00022739,3]
[380551385,1755807059932,-2290.87,0.00022739,3]
[380551386,1755807059942,-1692.72,0.00022739,3]
[380551387,1755807059951,-1356.2,0.00022739,3]
[380551388,1755807059960,-5659.8,0.00022739,3]
[380551389,1755807059970,-1141.27,0.00022739,3]
[380551390,1755807059979,-1890.58,0.00022739,3]
[380551391,1755807059988,-1023.17,0.00022739,3]
[380551392,1755807059998,-480.0,0.00022739,3]
[380551393,1755807060007,-480.0,0.00022739,3]
[380551394,1755807060017,-480.0,0.00022739,3]
[380551395,1755807060026,-1471.06,0.00022739,3]
[380551396,1755807060036,-480.0,0.00022739,3]
[380551397,1755807060045,-498.58,0.00022739,3]
[380551398,1755807060055,-1189.57,0.00022739,3]
[380551399,1755807060064,-1756.76,0.00022739,3]
[380551400,1755807060074,-519.77,0.00022739,3]
[380551401,1755807060083,-480.0,0.00022739,3]
[380551402,1755807060093,-4189.69,0.00022739,3]
[380551403,1755807060102,-1642.55,0.00022739,3]
[380551404,1755807060112,-480.0,0.00022739,3]
[380551405,1755807060122,-823.0,0.0002274,2]
[380551406,1755807060132,-376.63873153,0.0002274,2]
[380551407,1755807060141,-160.0,0.00022773,3]
[380551408,1755807060151,-228.0,0.00022776,2]
[380551409,1755807060160,-587.0,0.00022776,2]
[380551410,1755807060170,-202.0,0.0002283,5]
[380551411,1755807060180,-2500.0,0.00022864,2]
[380551412,1755807060190,-560.0,0.00022901,2]
[380551413,1755807060199,-2351.0,0.00022997,2]
[380551414,1755807060209,-160.0,0.00023,3]
[380551415,1755807060220,-2931.36326981,0.00023,7]
[380551416,1755807060229,-160.0,0.00023,3]
[380551417,1755807060239,-216.95272161,0.00023,3]
[380551418,1755807060248,-232.28399145,0.00023,3]
[380551419,1755807060258,-160.0,0.00023,2]
[380551420,1755807060267,-10098.1446764,0.00023,2]
[380551421,1755807060276,-160.0,0.00023,3]
[380551422,1755807060286,-160.0,0.00023,3]
[380551423,1755807060295,-844.19128999,0.00023,3]
[380551424,1755807060304,-542.5,0.00023013,3]
[380551425,1755807060314,-522.37,0.00023013,3]
[380551426,1755807060324,-480.0,0.00023013,3]
[380551427,1755807060334,-558.5,0.00023013,3]
[380551428,1755807060343,-684.61,0.00023013,3]
[380551429,1755807060353,-601.98,0.00023013,3]
[380551430,1755807060363,-1194.3,0.00023013,3]
[380551431,1755807060372,-953.56,0.00023013,3]
[380551432,1755807060381,-2888.87,0.00023013,3]
[380551433,1755807060391,-490.65163119,0.00023013,3]
[380551434,1755807060400,-1121.23,0.00023013,3]
[380551435,1755807060410,-484.79,0.00023013,3]
[380551436,1755807060419,-641.41,0.00023013,3]
[380551437,1755807060429,-648.6,0.00023013,3]
[380551438,1755807060438,-528.71,0.00023013,3]
[380551439,1755807060448,-5434.25,0.00023013,3]
[380551440,1755807060457,-551.65,0.00023013,3]
[380551441,1755807060467,-244.8979802,0.00023013,3]
[380551442,1755807060476,-503.55,0.00023013,3]
[380551443,1755807060486,-2049.4,0.00023013,3]
[380551444,1755807060495,-518.17,0.00023013,3]
[380551445,1755807060504,-785.98,0.00023013,3]
[380551446,1755807060513,-2203.26002466,0.00023013,3]
[380551447,1755807060622,-87.60997534,0.00023013,3]
[380551448,1755807060632,-1692.72,0.00023013,3]
[380551449,1755807060641,-1356.2,0.00023013,3]
[380551450,1755807060649,-5659.8,0.00023013,3]
[380551451,1755807060657,-1141.27,0.00023013,3]
[380551452,1755807060666,-1890.58,0.00023013,3]
[380551453,1755807060676,-1023.17,0.00023013,3]
[380551454,1755807060687,-480.0,0.00023013,3]
[380551455,1755807060697,-480.0,0.00023013,3]
[380551456,1755807060707,-480.0,0.00023013,3]
[380551457,1755807060716,-1471.06,0.00023013,3]
[380551458,1755807060726,-480.0,0.00023013,3]
[380551459,1755807060735,-498.58,0.00023013,3]
[380551460,1755807060745,-1189.57,0.00023013,3]
[380551461,1755807060755,-1756.76,0.00023013,3]
[380551462,1755807060765,-519.77,0.00023013,3]
[380551463,1755807060779,-480.0,0.00023013,3]
[380551464,1755807060788,-4189.69,0.00023013,3]
[380551465,1755807060797,-1642.55,0.00023013,3]
[380551466,1755807060807,-480.0,0.00023013,3]
[380551467,1755807060817,-165.0,0.00023014,7]
[380551468,1755807060828,-823.0,0.00023014,2]
[380551469,1755807060837,-306.0,0.00023015,2]
[380551470,1755807060848,-581.1080994,0.00023015,2]
[380551471,1755807060857,-168.0,0.00023048,2]
[380551472,1755807060866,-700.0,0.0002306,2]
[380551473,1755807060876,-168.0139822,0.00023068,2]
[380551474,1755807060885,-610.27141104,0.00023068,2]
[380551475,1755807060895,-5778.42,0.000231,7]
[380551476,1755807060904,-448.06,0.000231,7]
[380551477,1755807060914,-2810.13,0.000231,7]
[380551478,1755807060923,-46326.07,0.000231,2]
[380551479,1755807060934,-160.0,0.000231,7]
[380551480,1755807060943,-500.0,0.00023206,2]
[380551481,1755807060952,-1376.48468622,0.00023206,2]
[380551482,1755807060961,-1500.0,0.00023206,2]
[380551483,1755807060971,-1500.0,0.00023206,2]
[380551484,1755807060980,-3500.0,0.00023219,2]
[380551485,1755807060990,-500.0,0.00023222,2]
[380551486,1755807060999,-542.5,0.00023287,3]
[380551487,1755807061008,-522.37,0.00023287,3]
[380551488,1755807061018,-480.0,0.00023287,3]
[380551489,1755807061028,-558.5,0.00023287,3]
[380551490,1755807061037,-684.61,0.00023287,3]
[380551491,1755807061046,-601.98,0.00023287,3]
[380551492,1755807061055,-1194.3,0.00023287,3]
[380551493,1755807061065,-953.56,0.00023287,3]
[380551494,1755807061076,-2888.87,0.00023287,3]
[380551495,1755807061085,-1121.23,0.00023287,3]
[380551496,1755807061095,-484.79,0.00023287,3]
[380551497,1755807061104,-641.41,0.00023287,3]
[380551498,1755807061113,-648.6,0.00023287,3]
[380551499,1755807061123,-528.71,0.00023287,3]
[380551500,1755807061132,-5434.25,0.00023287,3]
[380551501,1755807061142,-551.65,0.00023287,3]
[380551502,1755807061151,-503.55,0.00023287,3]
[380551503,1755807061161,-2049.4,0.00023287,3]
[380551504,1755807061170,-518.17,0.00023287,3]
[380551505,1755807061179,-785.98,0.00023287,3]
[380551506,1755807061189,-2290.87,0.00023287,3]
[380551507,1755807061199,-1692.72,0.00023287,3]
[380551508,1755807061209,-1356.2,0.00023287,3]
[380551509,1755807061218,-5659.8,0.00023287,3]
[380551510,1755807061228,-1141.27,0.00023287,3]
[380551511,1755807061237,-1890.58,0.00023287,3]
[380551512,1755807061247,-1023.17,0.00023287,3]
[380551513,1755807061256,-480.0,0.00023287,3]
[380551514,1755807061265,-391.86564164,0.00023287,3]
[380551515,1755807061275,-480.0,0.00023287,3]
[380551516,1755807061284,-1471.06,0.00023287,3]
[380551517,1755807061293,-480.0,0.00023287,3]
[380551518,1755807061302,-498.58,0.00023287,3]
[380551519,1755807061312,-1189.57,0.00023287,3]
[380551520,1755807061321,-1756.76,0.00023287,3]
[380551521,1755807061335,-519.77,0.00023287,3]
[380551522,1755807061344,-151.09877687,0.00023287,3]
[380551523,1755807061354,-4189.69,0.00023287,3]
[380551524,1755807061363,-1642.55,0.00023287,3]
[380551525,1755807061373,-480.0,0.00023287,3]
[380551526,1755807061382,-823.0,0.00023288,2]
[380551527,1755807061392,-386.8603418,0.00023298,2]
[380551528,1755807061401,-825.8494687,0.00023298,2]
[380551529,1755807061411,-386.8603418,0.00023298,2]
[380551530,1755807061420,-386.8603418,0.00023298,2]
[380551531,1755807061429,-188.9947005,0.00023318,2]
[380551532,1755807061439,-5000.0,0.00023342,2]
[380551533,1755807061448,-2500.0,0.00023412,2]
[380551534,1755807061457,-660.0,0.00023449,2]
[380551535,1755807061467,-200.0,0.00023561,2]
[380551536,1755807061476,-200.0,0.00023561,2]
[380551537,1755807061485,-200.0,0.00023561,2]
[380551538,1755807061495,-200.0,0.00023561,2]
[380551539,1755807061504,-200.0,0.00023561,2]
[380551540,1755807061514,-200.0,0.00023561,2]
[380551541,1755807061524,-200.0,0.00023561,2]
[380551542,1755807061533,-200.0,0.00023561,2]
[380551543,1755807061543,-200.0,0.00023561,2]
[380551544,1755807061552,-200.0,0.00023561,2]
[380551545,1755807061561,-332.12173829,0.00023561,2]
[380551546,1755807061571,-542.5,0.00023561,3]
[380551547,1755807061582,-522.37,0.00023561,3]
[380551548,1755807061592,-480.0,0.00023561,3]
[380551549,1755807061602,-558.5,0.00023561,3]
[380551550,1755807061611,-684.61,0.00023561,3]
[380551551,1755807061620,-601.98,0.00023561,3]
[380551552,1755807061630,-1194.3,0.00023561,3]
[380551553,1755807061639,-953.56,0.00023561,3]
[380551554,1755807061649,-2888.87,0.00023561,3]
[380551555,1755807061658,-1121.23,0.00023561,3]
[380551556,1755807061667,-484.79,0.00023561,3]
[380551557,1755807061677,-641.41,0.00023561,3]
[380551558,1755807061686,-648.6,0.00023561,3]
[380551559,1755807061696,-528.71,0.00023561,3]
[380551560,1755807061705,-5434.25,0.00023561,3]
[380551561,1755807061715,-551.65,0.00023561,3]
[380551562,1755807061725,-503.55,0.00023561,3]
[380551563,1755807061734,-2049.4,0.00023561,3]
[380551564,1755807061743,-518.17,0.00023561,3]
[380551565,1755807061753,-785.98,0.00023561,3]
[380551566,1755807061763,-2290.87,0.00023561,3]
[380551567,1755807061775,-1692.72,0.00023561,3]
[380551568,1755807061785,-1356.2,0.00023561,3]
[380551569,1755807061794,-5659.8,0.00023561,3]
[380551570,1755807061804,-1500.0,0.00023561,28]
[380551571,1755807061814,-1500.0,0.00023561,28]
[380551572,1755807061824,-1500.0,0.00023561,28]
[380551573,1755807061835,-1500.0,0.00023561,28]
[380551574,1755807061846,-1500.0,0.00023561,28]
[380551575,1755807061856,-1500.0,0.00023561,28]
[380551576,1755807061866,-414.277049,0.00023561,28]
[380551577,1755807061876,-1141.27,0.00023561,3]
[380551578,1755807061885,-1890.58,0.00023561,3]
[380551579,1755807061894,-1023.17,0.00023561,3]
[380551580,1755807061903,-480.0,0.00023561,3]
[380551581,1755807061912,-480.0,0.00023561,3]
[380551582,1755807061922,-1471.06,0.00023561,3]
[380551583,1755807061933,-480.0,0.00023561,3]
[380551584,1755807062058,-498.58,0.00023561,3]
[380551585,1755807062067,-1189.57,0.00023561,3]
[380551586,1755807062078,-1756.76,0.00023561,3]
[380551587,1755807062087,-519.77,0.00023561,3]
[380551588,1755807062096,-4189.69,0.00023561,3]
[380551589,1755807062105,-1642.55,0.00023561,3]
[380551590,1755807062114,-480.0,0.00023561,3]
[380551591,1755807062124,-823.0,0.00023562,2]
[380551592,1755807062133,-9048.57023555,0.00023642,2]
[380551593,1755807062142,-160.0,0.00023682,4]
[380551594,1755807062152,-2000.0,0.00023754,2]
[380551595,1755807062162,-1502.76678058,0.00023754,2]
[380551596,1755807062171,-1285.55955501,0.00023767,2]
[380551597,1755807063237,-480.0,0.00019178,2]
[380551598,1755807063247,-480.0,0.00019178,2]
[380551599,1755807063257,-480.0,0.00019452,2]
[380551600,1755807063266,-480.0,0.00019726,2]
[380551601,1755807063275,-607.77,0.00022739,3]
[380551602,1755807063284,-607.77,0.00023013,3]
[380551603,1755807063293,-607.77,0.00023287,3]
[380551604,1755807063303,-1705.73472083,0.00023767,2]
[380551605,1755807063312,-293.9988399,0.00023788,2]
[380551606,1755807063322,-293.6852805,0.00023788,2]
[380551607,1755807063332,-525.73175277,0.00023788,2]
[380551608,1755807063431,-480.0,0.00019178,2]
[380551609,1755807063442,-480.0,0.00019178,2]
[380551610,1755807063451,-300.64205105,0.00019178,2]
[380551611,1755807063462,-179.35794895,0.00019178,2]
[380551612,1755807063471,-623.89,0.00019452,2]
[380551613,1755807063480,-146.75205105,0.00019452,2]
[380551614,1755807063523,-143.391542,0.00019178,2]
[380551615,1755807063671,-336.608458,0.00019178,2]
[380551616,1755807063681,-480.0,0.00019178,2]
[380551617,1755807063690,-540.98601112,0.00019178,2]
[380551618,1755807063700,-480.0,0.00019178,2]
[380551619,1755807063709,-333.24794895,0.00019452,2]
[380551620,1755807063719,-511.33,0.00019452,2]
[380551621,1755807063729,-525.59,0.00019726,2]
[380551622,1755807063738,-480.0,0.0002,2]
[380551623,1755807063748,-480.0,0.00020273,2]
[380551624,1755807063758,-574.00985,0.00020273,2]
[380551625,1755807063768,-574.00985,0.00020273,2]
[380551626,1755807063786,-480.0,0.00020547,2]
[380551627,1755807063798,-574.00985,0.000207,2]
[380551628,1755807063808,-574.00985,0.000207,2]
[380551629,1755807063818,-574.00985,0.000207,2]
[380551630,1755807063829,-1000.0,0.000208,2]
[380551631,1755807063840,-480.0,0.00020821,2]
[380551632,1755807063851,-480.0,0.00020821,2]
[380551633,1755807063864,-574.00985,0.00021001,2]
[380551634,1755807063874,-480.0,0.00021095,2]
[380551635,1755807063884,-480.0,0.00021095,2]
[380551636,1755807063894,-329.93,0.00021369,2]
[380551637,1755807063903,-480.0,0.00021369,2]
[380551638,1755807063913,-345.32800482,0.00021643,2]
[380551639,1755807063922,-574.00985,0.00021643,2]
[380551640,1755807063932,-607.77,0.00023561,3]
[380551641,1755807063942,-55.37634663,0.00023788,2]
[380551642,1755807063951,-160.9016298,0.00023788,2]
[380551643,1755807063961,-160.9016298,0.00023788,2]
[380551644,1755807063970,-581.1080994,0.00023788,2]
[380551645,1755807063980,-160.9016298,0.00023788,2]
[380551646,1755807063989,-581.1080994,0.00023788,2]
[380551647,1755807063998,-542.5,0.00023835,3]
[380551648,1755807064008,-522.37,0.00023835,3]
[380551649,1755807064017,-480.0,0.00023835,3]
[380551650,1755807064026,-558.5,0.00023835,3]
[380551651,1755807064036,-684.61,0.00023835,3]
[380551652,1755807064045,-601.98,0.00023835,3]
[380551653,1755807064054,-1194.3,0.00023835,3]
[380551654,1755807064063,-953.56,0.00023835,3]
[380551655,1755807064073,-1121.23,0.00023835,3]
[380551656,1755807064083,-484.79,0.00023835,3]
[380551657,1755807064092,-606.8365802,0.00023835,3]
[380551658,1755807064105,-34.5734198,0.00023835,3]
[380551659,1755807064114,-648.6,0.00023835,3]
[380551660,1755807064124,-528.71,0.00023835,3]
[380551661,1755807064134,-5434.25,0.00023835,3]
[380551662,1755807064143,-551.65,0.00023835,3]
[380551663,1755807064152,-503.55,0.00023835,3]
[380551664,1755807064162,-2049.4,0.00023835,3]
[380551665,1755807064171,-518.17,0.00023835,3]
[380551666,1755807064181,-785.98,0.00023835,3]
[380551667,1755807064190,-2290.87,0.00023835,3]
[380551668,1755807064200,-1692.72,0.00023835,3]
[380551669,1755807064210,-1356.2,0.00023835,3]
[380551670,1755807064219,-5659.8,0.00023835,3]
[380551671,1755807064229,-371.52658019,0.00023835,3]
[380551672,1755807064241,-769.74341981,0.00023835,3]
[380551673,1755807064251,-1890.58,0.00023835,3]
[380551674,1755807064260,-1023.17,0.00023835,3]
[380551675,1755807064270,-480.0,0.00023835,3]
[380551676,1755807064279,-371.96,0.00023835,3]
[380551677,1755807064288,-1471.06,0.00023835,3]
[380551678,1755807064299,-480.0,0.00023835,3]
[380551679,1755807064309,-498.58,0.00023835,3]
[380551680,1755807064319,-1189.57,0.00023835,3]
[380551681,1755807064329,-276.13658018,0.00023835,3]
[380551682,1755807074646,287.97578816,0.00018603,2]
[380551683,1755807166056,366.65693215,0.00019078,2]
[380551686,1755807226391,886.08823957,0.00019,2]
[380551689,1755807681823,159.23804155,0.00018927,2]
[380551690,1755807915966,-272.36045322,0.00019167,2]
[380551691,1755808115660,116.10409926,0.00018,2]
[380551692,1755808115682,10000.0,0.00018,2]
[380551693,1755808115704,10000.0,0.00018,2]
[380551694,1755808115725,10000.0,0.00018,2]
[380551695,1755808115746,10000.0,0.00018,2]
[380551696,1755808115766,10000.0,0.00018,2]
[380551697,1755808115789,10000.0,0.00018,2]
[380551698,1755808115809,10000.0,0.00018,2]
[380551699,1755808115830,10000.0,0.00018,2]
[380551700,1755808115851,10000.0,0.00018,2]
[380551701,1755808115872,10000.0,0.00018,2]
[380551702,1755808115893,10000.0,0.00018,2]
[380551703,1755808115913,10000.0,0.00018,2]
[380551704,1755808115934,10000.0,0.00018,2]
[380551705,1755808115956,10000.0,0.00018,2]
[380551706,1755808115978,3919.36249474,0.00018,2]
[380551707,1755808124849,6080.63750526,0.00019063,2]
[380551708,1755808124871,10000.0,0.00019063,2]
[380551709,1755808124891,6656.5091508,0.00019063,2]
[380551710,1755808145752,3343.4908492,0.00019111,2]
[380551711,1755808145774,1656.5091508,0.00019111,2]
[380551712,1755808213810,179.21106298,0.00019068,2]
[380551713,1755808214137,179.21106298,0.00019078,2]
[380551716,1755808232644,-300.0,0.00019167,2]
[380551717,1755808232654,-300.0,0.00019167,2]
[380551718,1755808232663,-1200.0,0.00019167,2]
[380551719,1755808232673,-1186.78,0.00019168,3]
[380551720,1755808232682,-593.39,0.00019168,3]
[380551721,1755808232692,-296.7,0.00019168,3]
[380551722,1755808232701,-890.11,0.00019168,3]
[380551723,1755808232710,-480.0,0.00019178,2]
[380551724,1755808232720,-480.0,0.00019178,2]
[380551726,1755808232729,-480.0,0.00019178,2]
[380551727,1755808232738,-480.0,0.00019178,2]
[380551729,1755808232748,-557.47421785,0.00019178,2]
[380551731,1755808232759,-480.0,0.00019178,2]
[380551733,1755808232779,-480.0,0.00019178,2]
[380551734,1755808232788,-480.0,0.00019178,2]
[380551735,1755808232797,-480.0,0.00019178,2]
[380551736,1755808232807,-482.9380629,0.00019178,2]
[380551737,1755808232816,-480.0,0.00019178,2]
[380551738,1755808232826,-309.85668414,0.00019178,2]
[380551740,1755808232841,-170.14331586,0.00019178,2]
[380551742,1755808232850,-480.0,0.00019178,2]
[380551744,1755808232859,-480.0,0.00019178,2]
[380551746,1755808232868,-480.0,0.00019178,2]
[380551748,1755808232877,-460.0,0.00019178,2]
[380551750,1755808232887,-361.70349739,0.00019178,2]
[380551752,1755808232896,-480.0,0.00019178,2]
[380551753,1755808232905,-203.5122005,0.00019178,2]
[380551755,1755808232914,-480.0,0.00019178,2]
[380551756,1755808232923,-480.0,0.00019178,2]
[380551757,1755808232932,-480.0,0.00019178,2]
[380551758,1755808232941,-480.0,0.00019178,2]
[380551759,1755808232951,-480.0,0.00019178,2]
[380551760,1755808232961,-480.0,0.00019178,2]
[380551761,1755808232971,-480.0,0.00019178,2]
[380551762,1755808232980,-480.0,0.00019178,2]
[380551763,1755808232990,-480.0,0.00019178,2]
[380551764,1755808233000,-480.0,0.00019178,2]
[380551765,1755808233010,-480.0,0.00019178,2]
[380551766,1755808233019,-480.0,0.00019178,2]
[380551767,1755808233028,-480.0,0.00019178,2]
[380551768,1755808233038,-273.00917935,0.00019178,2]
[380551769,1755808233047,-480.0,0.00019178,2]
[380551770,1755808233057,-480.0,0.00019178,2]
[380551771,1755808233240,-480.0,0.00019178,2]
[380551772,1755808233250,-480.0,0.00019178,2]
[380551773,1755808233259,-480.0,0.00019178,2]
[380551774,1755808233269,-523.96352078,0.00019178,2]
[380551775,1755808233278,-480.0,0.00019178,2]
[380551776,1755808233287,-480.0,0.00019178,2]
[380551777,1755808233297,-480.0,0.00019178,2]
[380551778,1755808233307,-369.27573417,0.00019178,2]
[380551779,1755808233316,-480.0,0.00019178,2]
[380551780,1755808233326,-480.0,0.00019178,2]
[380551781,1755808233337,-480.0,0.00019178,2]
[380551782,1755808233347,-480.0,0.00019178,2]
[380551783,1755808233356,-480.0,0.00019178,2]
[380551784,1755808233366,-480.0,0.00019178,2]
[380551785,1755808233375,-480.0,0.00019178,2]
[380551786,1755808233384,-480.0,0.00019178,2]
[380551787,1755808233393,-956.81,0.00019178,2]
[380551788,1755808233403,-480.0,0.00019178,2]
[380551789,1755808233413,-480.0,0.00019178,2]
[380551790,1755808233426,-480.0,0.00019178,2]
[380551791,1755808233435,-480.0,0.00019178,2]
[380551792,1755808233445,-480.0,0.00019178,2]
[380551793,1755808233454,-480.0,0.00019178,2]
[380551794,1755808233465,-480.0,0.00019178,2]
[380551795,1755808233474,-480.0,0.00019178,2]
[380551796,1755808233483,-480.0,0.00019178,2]
[380551797,1755808233493,-480.0,0.00019178,2]
[380551798,1755808233503,-480.0,0.00019178,2]
[380551799,1755808233513,-417.45169803,0.00019178,2]
[380551839,1755808238599,-62.54830197,0.00019178,2]
[380551840,1755808238609,-480.0,0.00019178,2]
[380551841,1755808238618,-480.0,0.00019178,2]
[380551843,1755808238627,-480.0,0.00019178,2]
[380551844,1755808238636,-480.0,0.00019178,2]
[380551846,1755808238645,-480.0,0.00019178,2]
[380551849,1755808238656,-480.0,0.00019178,2]
[380551850,1755808238665,-480.0,0.00019178,2]
[380551853,1755808238674,-480.0,0.00019178,2]
[380551854,1755808238683,-480.0,0.00019178,2]
[380551856,1755808238692,-480.0,0.00019178,2]
[380551858,1755808238702,-480.0,0.00019178,2]
[380551860,1755808238711,-480.0,0.00019178,2]
[380551862,1755808238720,-352.84912175,0.00019178,2]
[380551864,1755808238731,-480.0,0.00019178,2]
[380551867,1755808238741,-480.0,0.00019178,2]
[380551869,1755808238750,-347.26916722,0.00019178,2]
[380551870,1755808238759,-480.0,0.00019178,2]
[380551873,1755808238768,-480.0,0.00019178,2]
[380551875,1755808238777,-480.0,0.00019178,2]
[380551877,1755808238787,-480.0,0.00019178,2]
[380551879,1755808238797,-480.0,0.00019178,2]
[380551880,1755808238806,-442.95328827,0.00019178,2]
[380551882,1755808238815,-480.0,0.00019178,2]
[380551885,1755808238825,-480.0,0.00019178,2]
[380551887,1755808238834,-421.39091977,0.00019178,2]
[380551888,1755808238842,-480.0,0.00019178,2]
[380551890,1755808238851,-480.0,0.00019178,2]
[380551892,1755808238860,-480.0,0.00019178,2]
[380551894,1755808238870,-480.0,0.00019178,2]
[380551896,1755808238880,-218.44839415,0.00019178,2]
[380551899,1755808238890,-480.0,0.00019178,2]
[380551901,1755808238899,-480.0,0.00019178,2]
[380551903,1755808238909,-480.0,0.00019178,2]
[380551905,1755808238919,-480.0,0.00019178,2]
[380551906,1755808238928,-480.0,0.00019178,2]
[380551908,1755808238937,-480.0,0.00019178,2]
[380551910,1755808238946,-480.0,0.00019178,2]
[380551912,1755808238956,-480.0,0.00019178,2]
[380551914,1755808238965,-480.0,0.00019178,2]
[380551916,1755808238975,-480.0,0.00019178,2]
[380551919,1755808238986,-482.49951752,0.00019178,2]
[380551921,1755808238995,-480.0,0.00019178,2]
[380551923,1755808239004,-480.0,0.00019178,2]
[380551925,1755808239014,-480.0,0.00019178,2]
[380551927,1755808239023,-480.0,0.00019178,2]
[380551929,1755808239032,-480.0,0.00019178,2]
[380551930,1755808239042,-422.75740738,0.00019178,2]
[380551932,1755808239051,-480.0,0.00019178,2]
[380551934,1755808239060,-480.0,0.00019178,2]
[380551936,1755808239070,-480.0,0.00019178,2]
[380551938,1755808239080,-480.0,0.00019178,2]
[380551940,1755808239090,-480.0,0.00019178,2]
[380551942,1755808239100,-480.0,0.00019178,2]
[380551944,1755808239109,-480.0,0.00019178,2]
[380551946,1755808239118,-187.94482302,0.00019178,2]
[380551948,1755808239128,-480.0,0.00019178,2]
[380551950,1755808239137,-426.56388493,0.00019178,2]
[380551952,1755808239147,-480.0,0.00019178,2]
[380551954,1755808239158,-480.0,0.00019178,2]
[380551956,1755808239168,-480.0,0.00019178,2]
[380551958,1755808239177,-480.0,0.00019178,2]
[380551960,1755808239186,-367.26629957,0.00019178,2]
[380551962,1755808239196,-480.0,0.00019178,2]
[380551964,1755808239205,-480.0,0.00019178,2]
[380551966,1755808239214,-968.44,0.00019178,2]
[380551968,1755808239223,-480.0,0.00019178,2]
[380551970,1755808239232,-424.400139,0.00019178,2]
[380551972,1755808239241,-480.0,0.00019178,2]
[380551974,1755808239250,-480.0,0.00019178,2]
[380551976,1755808239260,-969.14,0.00019178,2]
[380551978,1755808239269,-480.0,0.00019178,2]
[380551979,1755808239278,-480.0,0.00019178,2]
[380551981,1755808239287,-480.0,0.00019178,2]
[380551983,1755808239295,-480.0,0.00019178,2]
[380551985,1755808239304,-381.51137534,0.00019178,2]
[380551987,1755808239313,-480.0,0.00019178,2]
[380551989,1755808239322,-480.0,0.00019178,2]
[380551991,1755808239332,-480.0,0.00019178,2]
[380551993,1755808239341,-480.0,0.00019178,2]
[380551995,1755808239351,-480.0,0.00019178,2]
[380551997,1755808239359,-480.0,0.00019178,2]
[380551999,1755808239368,-480.0,0.00019178,2]
[380552001,1755808239378,-480.0,0.00019178,2]
[380552003,1755808239387,-480.0,0.00019178,2]
[380552005,1755808239396,-480.0,0.00019178,2]
[380552007,1755808239406,-480.0,0.00019178,2]
[380552009,1755808239415,-480.0,0.00019178,2]
[380552011,1755808239428,-480.0,0.00019178,2]
[380552013,1755808239437,-480.0,0.00019178,2]
[380552015,1755808239446,-480.0,0.00019178,2]
[380552017,1755808239455,-480.0,0.00019178,2]
[380552019,1755808239465,-480.0,0.00019178,2]
[380552021,1755808239474,-480.0,0.00019178,2]
[380552022,1755808239483,-480.0,0.00019178,2]
[380552024,1755808239494,-480.0,0.00019178,2]